[Event "European Online Club-ch-E 2021"]
[Site "Online"]
[Date "2021.03.27"]
[Round "4.12"]
[White "Cederstam Barsk, Carl"]
[Black "Anacoglu, Cisel"]
[Result "1-0"]
[ECO "D27"]
[WhiteElo "2366"]
[BlackElo "1924"]
[Annotator "NA"]
[PlyCount "121"]
[EventDate "2021.03.27"]
[EventType "team-tourn"]
[EventCountry "NET"]
[SourceTitle "playchess.com"]
[Source "ChessBase"]
[SourceQuality "1"]
[TimeControl "900+5"]

1. Nf3 {[%emt 0:00:00]} d5 {[%emt 0:00:04]} 2. d4 {[%emt 0:00:10]} Nf6 {[%emt 0:00:05]} 3. c4 {[%emt 0:00:03]} dxc4 {[%emt 0:00:02]} 4. e3 {[%emt 0:00:04]} e6 {[%emt 0:00:02]} 5. Bxc4 {[%emt 0:00:02]} c5 {[%emt 0:00:09]} 6. O-O {[%emt 0:00:03]} a6 {[%emt 0:00:02]} 7. dxc5 {[%emt 0:00:08]} Qc7 {[%emt 0:01:28]} 8. b4 {[%emt 0:04:50]} a5 {[%emt 0:00:20]} 9. Qa4+ {[%emt 0:01:15]} Bd7 {[%emt 0:00:06]} 10. Bb5 {[%emt 0:00:10]} Bxb5 {[%emt 0:00:21]} 11. Qxb5+ {[%emt 0:00:03]} Qc6 {[%emt 0:00:02]} 12. Qxc6+ {[%emt 0:01:59]} Nxc6 {[%emt 0:00:04]} 13. b5 {[%emt 0:00:05]} Nb4 {[%emt 0:00:09]} 14. a3 {[%emt 0:00:08]} Nd3 {[%emt 0:02:25]} 15. c6 {[%emt 0:00:16]} bxc6 {[%emt 0:00:05]} 16. bxc6 {[%emt 0:00:03]} Ne4 {[%emt 0:00:49]} 17. Bd2 {[%emt 0:01:24]} Be7 {[%emt 0:00:27]} 18. Nc3 {[%emt 0:00:26]} Nxd2 {[%emt 0:00:06]} 19. Nxd2 {[%emt 0:00:02]} Bf6 {[%emt 0:00:03]} 20. Nde4 {[%emt 0:00:42]} Bxc3 {[%emt 0:00:34]} 21. Nxc3 {[%emt 0:00:02]} Rc8 {[%emt 0:00:15]} 22. Rab1 {[%emt 0:00:54]} O-O {[%emt 0:00:14]} 23. Rb6 {[%emt 0:00:06]} Ne5 {[%emt 0:01:21]} 24. Rc1 {[%emt 0:00:41]} Rxc6 {[%emt 0:00:59]} 25. Rxc6 {[%emt 0:00:04]} Nxc6 {[%emt 0:00:02]} 26. Ne4 {[%emt 0:00:54]} Rb8 {[%emt 0:03:24]} 27. g3 {[%emt 0:00:02]} Rb6 {[%emt 0:00:04]} 28. Rc5 {[%emt 0:00:02]} Kf8 {[%emt 0:00:47]} 29. Nd6 {[%emt 0:00:02]} Ne5 {[%emt 0:01:22]} 30. Rxe5 {[%emt 0:01:11]} Rxd6 {[%emt 0:00:02]} 31. Rxa5 {[%emt 0:00:01]} Rd1+ {[%emt 0:00:03]} 32. Kg2 {[%emt 0:00:01]} Ra1 {[%emt 0:00:01]} 33. Ra7 {[%emt 0:00:06]} g6 {[%emt 0:00:05]} 34. g4 {[%emt 0:00:02]} h6 {[%emt 0:00:30]} 35. h4 {[%emt 0:00:04]} Kg7 {[%emt 0:00:02]} 36. g5 {[%emt 0:00:09]} h5 {[%emt 0:00:41]} 37. a4 {[%emt 0:00:12]} Kg8 {[%emt 0:00:13]} 38. Ra8+ {[%emt 0:00:05]} Kg7 {[%emt 0:00:01]} 39. a5 {[%emt 0:00:02]} Ra4 {[%emt 0:00:13]} 40. a6 {[%emt 0:00:38]} Kh7 {[%emt 0:00:21]} 41. f4 {[%emt 0:00:39]} Kg7 {[%emt 0:00:02]} 42. Kf3 {[%emt 0:00:01]} Kh7 {[%emt 0:00:02]} 43. Ke2 {[%emt 0:00:02]} Ra3 {[%emt 0:00:03]} 44. Kd2 {[%emt 0:00:06]} Kg7 {[%emt 0:00:03]} 45. e4 {[%emt 0:00:10]} Kh7 {[%emt 0:00:10]} 46. Kc2 {[%emt 0:00:03]} Kg7 {[%emt 0:00:08]} 47. Kb2 {[%emt 0:00:01]} Ra5 {[%emt 0:00:12]} 48. Kc3 {[%emt 0:00:06]} Ra1 {[%emt 0:00:06]} 49. Kd4 {[%emt 0:00:05]} Ra4+ {[%emt 0:00:03]} 50. Ke5 {[%emt 0:00:06]} Ra1 {[%emt 0:00:08]} 51. Kd6 {[%emt 0:00:05]} Rd1+ {[%emt 0:00:03]} 52. Kc6 {[%emt 0:00:05]} Rc1+ {[%emt 0:00:03]} 53. Kb6 {[%emt 0:00:01]} Rb1+ {[%emt 0:00:01]} 54. Ka7 {[%emt 0:00:03]} Rb4 {[%emt 0:00:05]} 55. Rb8 {[%emt 0:00:04]} Rxe4 {[%emt 0:00:18]} 56. Rb6 {[%emt 0:00:19]} Rxf4 {[%emt 0:00:03]} 57. Kb7 {[%emt 0:00:02]} Rxh4 {[%emt 0:00:02]} 58. a7 {[%emt 0:00:02]} Ra4 {[%emt 0:00:02]} 59. Ra6 {[%emt 0:00:01]} Rb4+ {[%emt 0:00:02]} 60. Kc7 {[%emt 0:00:05]} Rc4+ {[%emt 0:00:02]} 61. Kd7 {[%emt 0:00:01]} 1-0

[Event "European Online Club-ch-E 2021"]
[Site "Online"]
[Date "2021.03.27"]
[Round "4.15"]
[White "Durarbayli, Vasif"]
[Black "Garrido Dominguez, Jesus"]
[Result "1-0"]
[ECO "C41"]
[WhiteElo "2606"]
[BlackElo "2413"]
[Annotator "ChessBase"]
[PlyCount "49"]
[EventDate "2021.03.27"]
[EventType "team-tourn"]
[EventCountry "NET"]
[SourceTitle "playchess.com"]
[Source "ChessBase"]
[SourceQuality "1"]
[TimeControl "900+5"]

1. e4 {[%emt 0:00:00]} d6 {[%emt 0:00:03]} 2. d4 {[%emt 0:00:03]} Nf6 {[%emt 0:00:03]} 3. Nc3 {[%emt 0:00:02]} e5 {[%emt 0:00:02]} 4. Nf3 {[%emt 0:00:07]} Nbd7 {[%emt 0:00:04]} 5. h3 {[%emt 0:00:26]} Be7 {[%emt 0:00:13]} 6. Be3 {[%emt 0:00:02]} c6 {[%emt 0:00:04]} 7. g4 {[%emt 0:00:09]} exd4 {[%emt 0:03:45]} 8. Nxd4 {[%emt 0:00:44]} Nc5 {[%emt 0:00:09]} 9. Bg2 {[%emt 0:00:09]} Qa5 {[%emt 0:00:27]} 10. O-O {[%emt 0:01:34]} g6 {[%emt 0:00:11]} 11. Nb3 {[%emt 0:00:23]} Nxb3 {[%emt 0:00:14]} 12. axb3 {[%emt 0:00:04]} Qc7 {[%emt 0:00:04]} 13. f4 {[%emt 0:00:02]} a6 {[%emt 0:00:07]} 14. Bd4 {[%emt 0:01:20]} O-O {[%emt 0:00:25]} 15. f5 {[%emt 0:00:14]} g5 {[%emt 0:02:29]} 16. h4 {[%emt 0:02:15]} h6 {[%emt 0:00:11]} 17. hxg5 {[%emt 0:00:03]} hxg5 {[%emt 0:00:10]} 18. Qd2 {[%emt 0:00:06]} Nh7 {[%emt 0:00:05]} 19. f6 {[%emt 0:02:24]} Bd8 {[%emt 0:00:03]} 20. Rf3 {[%emt 0:00:03]} Re8 {[%emt 0:02:29]} 21. Rh3 {[%emt 0:01:14]} Re5 {[%emt 0:00:07]} 22. Bxe5 {[%emt 0:00:06]} dxe5 {[%emt 0:00:02]} 23. Rxh7 {[%emt 0:00:04]} Qb6+ {[%emt 0:00:09]} 24. Kh1 {[%emt 0:00:18]} Kxh7 {[%emt 0:00:02]} 25. Qxg5 {[%emt 0:00:06]} 1-0

[Event "European Online Club-ch-E 2021"]
[Site "Online"]
[Date "2021.03.27"]
[Round "4.16"]
[White "Soham Das"]
[Black "Safarli, Eltaj"]
[Result "1/2-1/2"]
[ECO "E05"]
[WhiteElo "2385"]
[BlackElo "2598"]
[Annotator "ChessBase"]
[PlyCount "106"]
[EventDate "2021.03.27"]
[EventType "team-tourn"]
[EventCountry "NET"]
[SourceTitle "playchess.com"]
[Source "ChessBase"]
[SourceQuality "1"]
[TimeControl "900+5"]

1. d4 {[%emt 0:00:00]} Nf6 {[%emt 0:00:03]} 2. c4 {[%emt 0:00:04]} e6 {[%emt 0:00:02]} 3. g3 {[%emt 0:00:07]} d5 {[%emt 0:00:02]} 4. Bg2 {[%emt 0:00:07]} Be7 {[%emt 0:00:02]} 5. Nf3 {[%emt 0:00:02]} O-O {[%emt 0:00:02]} 6. O-O {[%emt 0:00:02]} dxc4 {[%emt 0:00:01]} 7. Qc2 {[%emt 0:00:33]} a6 {[%emt 0:00:02]} 8. Qxc4 {[%emt 0:00:02]} b5 {[%emt 0:00:02]} 9. Qc2 {[%emt 0:00:02]} Bb7 {[%emt 0:00:01]} 10. Bf4 {[%emt 0:00:29]} Nc6 {[%emt 0:00:06]} 11. Nc3 {[%emt 0:00:11]} Nb4 {[%emt 0:01:04]} 12. Qd2 {[%emt 0:00:07]} c5 {[%emt 0:00:09]} 13. dxc5 {[%emt 0:00:25]} Bxc5 {[%emt 0:00:47]} 14. Qxd8 {[%emt 0:00:36]} Rfxd8 {[%emt 0:00:04]} 15. a4 {[%emt 0:00:04]} bxa4 {[%emt 0:02:26]} 16. Nxa4 {[%emt 0:00:07]} Ba7 {[%emt 0:00:02]} 17. Rfc1 {[%emt 0:00:21]} Rdc8 {[%emt 0:00:17]} 18. Nc3 {[%emt 0:00:32]} Nbd5 {[%emt 0:00:31]} 19. Nxd5 {[%emt 0:00:32]} Nxd5 {[%emt 0:00:43]} 20. Be5 {[%emt 0:00:18]} Nb4 {[%emt 0:00:50]} 21. Ne1 {[%emt 0:00:45]} Bxg2 {[%emt 0:00:29]} 22. Kxg2 {[%emt 0:00:06]} Bc5 {[%emt 0:01:19]} 23. Ra4 {[%emt 0:00:17]} Bf8 {[%emt 0:00:24]} 24. Rxc8 {[%emt 0:03:27]} Rxc8 {[%emt 0:00:02]} 25. e4 {[%emt 0:00:09]} Rc6 {[%emt 0:02:04]} 26. Bc3 {[%emt 0:00:14]} Rb6 {[%emt 0:00:02]} 27. Kf3 {[%emt 0:00:10]} f6 {[%emt 0:01:01]} 28. Ke2 {[%emt 0:00:32]} Bc5 {[%emt 0:00:36]} 29. f4 {[%emt 0:01:25]} Kf7 {[%emt 0:00:08]} 30. Nf3 {[%emt 0:00:11]} Nc6 {[%emt 0:01:39]} 31. Nd2 {[%emt 0:00:25]} Nb8 {[%emt 0:00:16]} 32. Nc4 {[%emt 0:00:18]} Rb5 {[%emt 0:00:15]} 33. Kd3 {[%emt 0:00:32]} Be7 {[%emt 0:00:09]} 34. e5 {[%emt 0:00:20]} Nd7 {[%emt 0:00:08]} 35. Kc2 {[%emt 0:00:09]} Nb6 {[%emt 0:00:31]} 36. Nxb6 {[%emt 0:00:11]} Rxb6 {[%emt 0:00:01]} 37. Rc4 {[%emt 0:00:04]} fxe5 {[%emt 0:00:16]} 38. fxe5 {[%emt 0:00:37]} h5 {[%emt 0:00:06]} 39. Rc7 {[%emt 0:00:06]} Ke8 {[%emt 0:00:01]} 40. Kd3 {[%emt 0:00:12]} g5 {[%emt 0:00:15]} 41. h3 {[%emt 0:00:21]} Kd8 {[%emt 0:00:12]} 42. Ra7 {[%emt 0:00:06]} Rc6 {[%emt 0:00:01]} 43. Ra8+ {[%emt 0:00:09]} Kd7 {[%emt 0:00:03]} 44. Ra7+ {[%emt 0:00:18]} Ke8 {[%emt 0:00:03]} 45. g4 {[%emt 0:00:21]} hxg4 {[%emt 0:00:03]} 46. hxg4 {[%emt 0:00:02]} Bc5 {[%emt 0:00:16]} 47. Ra8+ {[%emt 0:00:07]} Kf7 {[%emt 0:00:03]} 48. Rd8 {[%emt 0:00:10]} Be7 {[%emt 0:00:07]} 49. Rd7 {[%emt 0:00:13]} Ke8 {[%emt 0:00:09]} 50. Ra7 {[%emt 0:00:04]} Bc5 {[%emt 0:00:01]} 51. Ra8+ {[%emt 0:00:07]} Kf7 {[%emt 0:00:03]} 52. Bd2 {[%emt 0:00:31]} Be7 {[%emt 0:00:09]} 53. Bc3 {[%emt 0:00:15]} Bc5 {[%emt 0:00:03]} 1/2-1/2

[Event "European Online Club-ch-E 2021"]
[Site "Online"]
[Date "2021.03.27"]
[Round "4.18"]
[White "Roiz, Michael"]
[Black "Moussard, Jules"]
[Result "1-0"]
[ECO "A80"]
[WhiteElo "2579"]
[BlackElo "2635"]
[Annotator "ChessBase"]
[PlyCount "127"]
[EventDate "2021.03.27"]
[EventType "team-tourn"]
[EventCountry "NET"]
[SourceTitle "playchess.com"]
[Source "ChessBase"]
[SourceQuality "1"]
[TimeControl "900+5"]

1. d4 {[%emt 0:00:00]} f5 {[%emt 0:00:02]} 2. Bg5 {[%emt 0:00:05]} g6 {[%emt 0:00:05]} 3. Nc3 {[%emt 0:00:16]} Bg7 {[%emt 0:00:02]} 4. Nf3 {[%emt 0:00:14]} h6 {[%emt 0:00:36]} 5. Bd2 {[%emt 0:00:57]} e6 {[%emt 0:01:00]} 6. e4 {[%emt 0:00:10]} fxe4 {[%emt 0:00:25]} 7. Nxe4 {[%emt 0:00:01]} d5 {[%emt 0:00:01]} 8. Ng3 {[%emt 0:00:31]} Nc6 {[%emt 0:00:08]} 9. Bd3 {[%emt 0:01:14]} Nge7 {[%emt 0:00:22]} 10. c3 {[%emt 0:00:10]} O-O {[%emt 0:00:09]} 11. O-O {[%emt 0:00:03]} Nf5 {[%emt 0:00:11]} 12. Qc2 {[%emt 0:00:46]} g5 {[%emt 0:00:43]} 13. Rae1 {[%emt 0:02:19]} Bd7 {[%emt 0:02:13]} 14. h3 {[%emt 0:01:00]} Nxg3 {[%emt 0:01:15]} 15. fxg3 {[%emt 0:00:01]} Qe7 {[%emt 0:00:06]} 16. Qb3 {[%emt 0:00:53]} Qd6 {[%emt 0:00:49]} 17. g4 {[%emt 0:00:16]} Rae8 {[%emt 0:01:56]} 18. Bb1 {[%emt 0:00:28]} e5 {[%emt 0:00:15]} 19. dxe5 {[%emt 0:00:01]} Nxe5 {[%emt 0:00:01]} 20. Nd4 {[%emt 0:00:49]} Nc4 {[%emt 0:01:51]} 21. Qc2 {[%emt 0:00:26]} Rxf1+ {[%emt 0:00:03]} 22. Rxf1 {[%emt 0:00:01]} Re4 {[%emt 0:00:02]} 23. Bc1 {[%emt 0:00:28]} c5 {[%emt 0:00:52]} 24. Qf2 {[%emt 0:03:01]} cxd4 {[%emt 0:03:27]} 25. Bxe4 {[%emt 0:00:02]} dxe4 {[%emt 0:00:21]} 26. Qf7+ {[%emt 0:00:02]} Kh8 {[%emt 0:00:04]} 27. Qxc4 {[%emt 0:00:02]} Be6 {[%emt 0:00:11]} 28. Qe2 {[%emt 0:00:25]} Qc6 {[%emt 0:00:01]} 29. Re1 {[%emt 0:00:31]} dxc3 {[%emt 0:00:02]} 30. bxc3 {[%emt 0:00:02]} Bxc3 {[%emt 0:00:01]} 31. Bd2 {[%emt 0:00:48]} Bd4+ {[%emt 0:00:01]} 32. Be3 {[%emt 0:00:02]} Bg7 {[%emt 0:00:01]} 33. Bxa7 {[%emt 0:00:23]} Bd5 {[%emt 0:00:01]} 34. Qf2 {[%emt 0:00:10]} Bc4 {[%emt 0:00:07]} 35. Bd4 {[%emt 0:00:05]} Kh7 {[%emt 0:00:05]} 36. Bxg7 {[%emt 0:00:02]} Kxg7 {[%emt 0:00:01]} 37. Qd4+ {[%emt 0:00:02]} Kg8 {[%emt 0:00:01]} 38. Rxe4 {[%emt 0:00:13]} Bxa2 {[%emt 0:00:01]} 39. Qd8+ {[%emt 0:00:24]} Kg7 {[%emt 0:00:02]} 40. Qd4+ {[%emt 0:00:04]} Kg8 {[%emt 0:00:06]} 41. Re7 {[%emt 0:00:10]} Bf7 {[%emt 0:00:01]} 42. Qd8+ {[%emt 0:00:11]} Kg7 {[%emt 0:00:02]} 43. Qc7 {[%emt 0:00:11]} Qd5 {[%emt 0:00:03]} 44. Rd7 {[%emt 0:00:11]} Qe6 {[%emt 0:00:01]} 45. Qc3+ {[%emt 0:00:03]} Qf6 {[%emt 0:00:28]} 46. Qxf6+ {[%emt 0:00:03]} Kxf6 {[%emt 0:00:01]} 47. Rxb7 {[%emt 0:00:02]} Bd5 {[%emt 0:00:03]} 48. Rb6+ {[%emt 0:00:04]} Kg7 {[%emt 0:00:01]} 49. Kf2 {[%emt 0:00:02]} Be4 {[%emt 0:00:01]} 50. g3 {[%emt 0:00:06]} Ba8 {[%emt 0:00:10]} 51. Ke3 {[%emt 0:00:08]} Bg2 {[%emt 0:00:02]} 52. h4 {[%emt 0:00:02]} Bh3 {[%emt 0:00:01]} 53. Kf3 {[%emt 0:00:05]} Bf1 {[%emt 0:00:02]} 54. hxg5 {[%emt 0:00:08]} hxg5 {[%emt 0:00:01]} 55. Ke4 {[%emt 0:00:02]} Be2 {[%emt 0:00:13]} 56. Kf5 {[%emt 0:00:01]} Bd3+ {[%emt 0:00:00]} 57. Kxg5 {[%emt 0:00:02]} Be4 {[%emt 0:00:01]} 58. Ra6 {[%emt 0:00:04]} Bd3 {[%emt 0:00:01]} 59. Ra7+ {[%emt 0:00:01]} Kh8 {[%emt 0:00:01]} 60. Kh6 {[%emt 0:00:04]} Bc4 {[%emt 0:00:01]} 61. g5 {[%emt 0:00:01]} Bg8 {[%emt 0:00:02]} 62. g6 {[%emt 0:00:03]} Bd5 {[%emt 0:00:04]} 63. Rh7+ {[%emt 0:00:03]} Kg8 {[%emt 0:00:01]} 64. Rd7 {[%emt 0:00:02]} 1-0

[Event "European Online Club-ch-E 2021"]
[Site "Online"]
[Date "2021.03.27"]
[Round "4.19"]
[White "Gozzoli, Yannick"]
[Black "Postny, Evgeny"]
[Result "1/2-1/2"]
[ECO "E15"]
[WhiteElo "2600"]
[BlackElo "2605"]
[Annotator "ChessBase"]
[PlyCount "95"]
[EventDate "2021.03.27"]
[EventType "team-tourn"]
[EventCountry "NET"]
[SourceTitle "playchess.com"]
[Source "ChessBase"]
[SourceQuality "1"]
[TimeControl "900+5"]

1. d4 {[%emt 0:00:00]} Nf6 {[%emt 0:00:06]} 2. c4 {[%emt 0:00:22]} e6 {[%emt 0:00:01]} 3. Nf3 {[%emt 0:00:06]} b6 {[%emt 0:00:02]} 4. g3 {[%emt 0:00:10]} Bb4+ {[%emt 0:00:04]} 5. Bd2 {[%emt 0:00:08]} Bxd2+ {[%emt 0:00:02]} 6. Qxd2 {[%emt 0:00:03]} Ba6 {[%emt 0:00:02]} 7. b3 {[%emt 0:00:51]} c6 {[%emt 0:00:02]} 8. Bg2 {[%emt 0:00:07]} d5 {[%emt 0:00:01]} 9. Ne5 {[%emt 0:01:19]} Nfd7 {[%emt 0:00:25]} 10. Nxd7 {[%emt 0:00:08]} Nxd7 {[%emt 0:00:04]} 11. cxd5 {[%emt 0:00:59]} cxd5 {[%emt 0:00:03]} 12. O-O {[%emt 0:00:02]} O-O {[%emt 0:00:06]} 13. Rc1 {[%emt 0:00:14]} Qe7 {[%emt 0:00:20]} 14. Nc3 {[%emt 0:00:18]} Rac8 {[%emt 0:00:25]} 15. Rc2 {[%emt 0:00:06]} Nf6 {[%emt 0:00:45]} 16. Rac1 {[%emt 0:00:07]} Qd6 {[%emt 0:00:21]} 17. Bf1 {[%emt 0:00:17]} Qd7 {[%emt 0:00:56]} 18. f3 {[%emt 0:00:24]} h6 {[%emt 0:00:09]} 19. Kf2 {[%emt 0:00:25]} Rfe8 {[%emt 0:00:30]} 20. Nd1 {[%emt 0:00:27]} Rxc2 {[%emt 0:00:06]} 21. Rxc2 {[%emt 0:00:01]} Rc8 {[%emt 0:00:04]} 22. Rxc8+ {[%emt 0:00:03]} Qxc8 {[%emt 0:00:03]} 23. Qc3 {[%emt 0:00:02]} Qxc3 {[%emt 0:00:17]} 24. Nxc3 {[%emt 0:00:00]} Kf8 {[%emt 0:00:01]} 25. h3 {[%emt 0:00:18]} Ke7 {[%emt 0:00:05]} 26. Bg2 {[%emt 0:00:06]} Kd6 {[%emt 0:00:18]} 27. f4 {[%emt 0:00:02]} Ne8 {[%emt 0:00:11]} 28. Bf3 {[%emt 0:00:30]} Ke7 {[%emt 0:00:14]} 29. g4 {[%emt 0:00:07]} g5 {[%emt 0:00:16]} 30. Kg3 {[%emt 0:00:04]} Nd6 {[%emt 0:00:11]} 31. h4 {[%emt 0:00:02]} f6 {[%emt 0:00:05]} 32. e3 {[%emt 0:00:05]} Bd3 {[%emt 0:00:09]} 33. hxg5 {[%emt 0:00:07]} hxg5 {[%emt 0:00:09]} 34. f5 {[%emt 0:00:58]} exf5 {[%emt 0:01:12]} 35. Nxd5+ {[%emt 0:00:05]} Ke6 {[%emt 0:00:14]} 36. gxf5+ {[%emt 0:01:01]} Kxf5 {[%emt 0:00:52]} 37. Nc3 {[%emt 0:00:19]} Be4 {[%emt 0:01:26]} 38. Nxe4 {[%emt 0:03:50]} Nxe4+ {[%emt 0:00:03]} 39. Bxe4+ {[%emt 0:00:00]} Kxe4 {[%emt 0:00:02]} 40. Kg4 {[%emt 0:00:00]} b5 {[%emt 0:02:05]} 41. b4 {[%emt 0:01:15]} Kd5 {[%emt 0:00:12]} 42. Kf5 {[%emt 0:00:03]} Kc4 {[%emt 0:00:35]} 43. a3 {[%emt 0:00:02]} Kd5 {[%emt 0:00:16]} 44. Kg4 {[%emt 0:00:01]} Ke4 {[%emt 0:00:16]} 45. Kh5 {[%emt 0:01:11]} Kd5 {[%emt 0:03:25]} 46. Kg4 {[%emt 0:00:13]} Ke4 {[%emt 0:00:19]} 47. Kh5 {[%emt 0:00:08]} Kd5 {[%emt 0:00:29]} 48. Kg4 {[%emt 0:00:02]} 1/2-1/2

[Event "European Online Club-ch-E 2021"]
[Site "Online"]
[Date "2021.03.27"]
[Round "4.20"]
[White "Steinberg, Nitzan"]
[Black "Cornette, Matthieu"]
[Result "1/2-1/2"]
[ECO "B30"]
[WhiteElo "2553"]
[BlackElo "2555"]
[Annotator "ChessBase"]
[PlyCount "83"]
[EventDate "2021.03.27"]
[EventType "team-tourn"]
[EventCountry "NET"]
[SourceTitle "playchess.com"]
[Source "ChessBase"]
[SourceQuality "1"]
[TimeControl "900+5"]

1. e4 {[%emt 0:00:00]} c5 {[%emt 0:00:04]} 2. Nf3 {[%emt 0:00:02]} Nc6 {[%emt 0:00:02]} 3. Bb5 {[%emt 0:00:06]} e6 {[%emt 0:00:06]} 4. O-O {[%emt 0:00:04]} Nge7 {[%emt 0:00:02]} 5. Re1 {[%emt 0:00:02]} Nd4 {[%emt 0:00:03]} 6. Nxd4 {[%emt 0:00:03]} cxd4 {[%emt 0:00:00]} 7. d3 {[%emt 0:00:05]} a6 {[%emt 0:00:07]} 8. Ba4 {[%emt 0:00:02]} b5 {[%emt 0:00:02]} 9. Bb3 {[%emt 0:00:01]} Bb7 {[%emt 0:00:06]} 10. Nd2 {[%emt 0:00:28]} Nc6 {[%emt 0:00:09]} 11. a3 {[%emt 0:00:02]} Qc7 {[%emt 0:00:28]} 12. Nf3 {[%emt 0:00:14]} Bd6 {[%emt 0:00:44]} 13. Bd2 {[%emt 0:00:03]} O-O {[%emt 0:00:07]} 14. c3 {[%emt 0:00:17]} Bc5 {[%emt 0:03:22]} 15. Rc1 {[%emt 0:00:10]} Qb6 {[%emt 0:00:16]} 16. Qe2 {[%emt 0:03:01]} dxc3 {[%emt 0:00:32]} 17. Bxc3 {[%emt 0:00:04]} Nd4 {[%emt 0:00:05]} 18. Bxd4 {[%emt 0:00:36]} Bxd4 {[%emt 0:00:06]} 19. Nxd4 {[%emt 0:00:02]} Qxd4 {[%emt 0:00:03]} 20. Rc3 {[%emt 0:00:06]} Rac8 {[%emt 0:02:34]} 21. Rec1 {[%emt 0:00:03]} Rc6 {[%emt 0:00:19]} 22. Qe3 {[%emt 0:00:22]} Qxe3 {[%emt 0:00:28]} 23. fxe3 {[%emt 0:00:02]} Rfc8 {[%emt 0:00:02]} 24. Rxc6 {[%emt 0:00:04]} Rxc6 {[%emt 0:00:04]} 25. Rxc6 {[%emt 0:00:25]} Bxc6 {[%emt 0:00:03]} 26. Kf2 {[%emt 0:00:14]} f6 {[%emt 0:00:04]} 27. Bc2 {[%emt 0:00:17]} Kf7 {[%emt 0:00:37]} 28. d4 {[%emt 0:00:05]} h6 {[%emt 0:00:32]} 29. g3 {[%emt 0:00:18]} Ke7 {[%emt 0:00:09]} 30. Ke2 {[%emt 0:00:07]} d6 {[%emt 0:00:09]} 31. Kd2 {[%emt 0:00:23]} Kd7 {[%emt 0:00:12]} 32. Kc3 {[%emt 0:00:10]} Kc7 {[%emt 0:00:02]} 33. Bb3 {[%emt 0:00:16]} e5 {[%emt 0:00:18]} 34. Bc2 {[%emt 0:00:05]} Be8 {[%emt 0:00:08]} 35. Bb3 {[%emt 0:00:29]} Bh5 {[%emt 0:00:29]} 36. Kd2 {[%emt 0:00:25]} Bf3 {[%emt 0:00:04]} 37. Bc2 {[%emt 0:00:08]} Kb6 {[%emt 0:00:15]} 38. Kc3 {[%emt 0:00:07]} Bg2 {[%emt 0:00:16]} 39. Bd3 {[%emt 0:00:07]} Bf3 {[%emt 0:00:03]} 40. Bc2 {[%emt 0:00:02]} Bg2 {[%emt 0:00:01]} 41. Bd3 {[%emt 0:00:01]} Bf3 {[%emt 0:00:02]} 42. Bc2 {[%emt 0:00:02]} 1/2-1/2

[Event "European Online Club-ch-E 2021"]
[Site "Online"]
[Date "2021.03.27"]
[Round "5.1"]
[White "Mikhalevski, Victor"]
[Black "Coursaget, Nicolas"]
[Result "1-0"]
[ECO "A20"]
[WhiteElo "2552"]
[BlackElo "2192"]
[Annotator "ChessBase"]
[PlyCount "77"]
[EventDate "2021.03.27"]
[EventType "team-tourn"]
[EventCountry "NET"]
[SourceTitle "playchess.com"]
[Source "ChessBase"]
[SourceQuality "1"]
[TimeControl "900+5"]

1. c4 {[%emt 0:00:00]} Nf6 {[%emt 0:05:16]} 2. g3 {[%emt 0:00:08]} e5 {[%emt 0:00:07]} 3. Bg2 {[%emt 0:00:02]} c6 {[%emt 0:00:07]} 4. Nf3 {[%emt 0:00:03]} Qc7 {[%emt 0:00:07]} 5. Qc2 {[%emt 0:01:25]} g6 {[%emt 0:00:14]} 6. d4 {[%emt 0:00:39]} exd4 {[%emt 0:00:05]} 7. Nxd4 {[%emt 0:00:02]} Bg7 {[%emt 0:00:02]} 8. O-O {[%emt 0:00:06]} O-O {[%emt 0:00:04]} 9. Bf4 {[%emt 0:00:14]} Qa5 {[%emt 0:00:02]} 10. Bd6 {[%emt 0:00:26]} Re8 {[%emt 0:00:06]} 11. Nc3 {[%emt 0:00:08]} Qh5 {[%emt 0:00:16]} 12. h3 {[%emt 0:00:11]} Bf8 {[%emt 0:01:18]} 13. g4 {[%emt 0:00:51]} Qh6 {[%emt 0:00:21]} 14. Bg3 {[%emt 0:00:24]} d6 {[%emt 0:00:11]} 15. Rad1 {[%emt 0:00:12]} Nbd7 {[%emt 0:00:13]} 16. Nf3 {[%emt 0:00:11]} Qg7 {[%emt 0:00:06]} 17. Bxd6 {[%emt 0:00:14]} Bxd6 {[%emt 0:00:06]} 18. Rxd6 {[%emt 0:00:02]} Nc5 {[%emt 0:00:03]} 19. Rfd1 {[%emt 0:00:15]} Be6 {[%emt 0:00:12]} 20. b3 {[%emt 0:00:40]} h6 {[%emt 0:00:09]} 21. Nd4 {[%emt 0:00:51]} Bd7 {[%emt 0:00:22]} 22. b4 {[%emt 0:00:18]} Ne6 {[%emt 0:00:09]} 23. Nf3 {[%emt 0:00:24]} Nf4 {[%emt 0:00:30]} 24. e3 {[%emt 0:00:31]} Nxg2 {[%emt 0:00:14]} 25. Kxg2 {[%emt 0:00:02]} Be6 {[%emt 0:00:13]} 26. Ne2 {[%emt 0:00:04]} h5 {[%emt 0:01:30]} 27. Ng5 {[%emt 0:01:18]} hxg4 {[%emt 0:00:12]} 28. Nxe6 {[%emt 0:00:03]} gxh3+ {[%emt 0:00:02]} 29. Kxh3 {[%emt 0:00:03]} Rxe6 {[%emt 0:00:18]} 30. Rxe6 {[%emt 0:00:06]} fxe6 {[%emt 0:00:07]} 31. Kg2 {[%emt 0:00:23]} e5 {[%emt 0:00:22]} 32. Ng3 {[%emt 0:00:17]} Rf8 {[%emt 0:00:07]} 33. c5 {[%emt 0:01:47]} Qf7 {[%emt 0:00:10]} 34. Rd6 {[%emt 0:00:11]} Kg7 {[%emt 0:00:25]} 35. Qe2 {[%emt 0:01:03]} Nd5 {[%emt 0:00:15]} 36. a3 {[%emt 0:00:19]} Kh7 {[%emt 0:01:09]} 37. Kg1 {[%emt 0:00:46]} Qe7 {[%emt 0:00:34]} 38. Qg4 {[%emt 0:00:14]} Rf6 {[%emt 0:00:17]} 39. Rd7 {[%emt 0:00:05]} 1-0